bitfinex/quotes_ETHUSD_20250314
["timestamp","ask_amount","ask_price","bid_price","bid_amount"]
[1741927645680,1.79423631,1898.6,1898.5,6.36879]
[1741927646350,0.4353,1898.8,1898.5,6.36879]
[1741927646550,8.69285474,1898.9,1898.5,6.36879]
[1741927646951,3.42652474,1898.9,1898.5,6.36879]
[1741927647159,8.69275474,1898.9,1898.5,6.36879]
[1741927648093,3.42652474,1898.9,1898.5,11.636]
[1741927648292,2.99122474,1898.9,1898.6,6.4305]
[1741927649289,2.99122474,1898.9,1898.6,1.1636]
[1741927649585,8.25746474,1898.9,1898.5,6.3687]
[1741927649791,8.25746474,1898.9,1898.5,11.63573]
[1741927650093,2.99122474,1898.9,1898.6,5.26698]
[1741927650990,2.99122474,1898.9,1898.5,11.63574]
[1741927651193,2.99122474,1898.9,1898.6,5.26703]
[1741927651385,2.99122474,1898.9,1898.6,6.43059]
[1741927651894,2.99122474,1898.9,1898.6,11.69747]
[1741927652192,2.99122474,1898.9,1898.6,6.43044]
[1741927652409,2.99122474,1898.9,1898.6,6.43034]
[1741927653965,2.99122474,1898.9,1898.6,11.69722]
[1741927654264,2.99122474,1898.9,1898.6,6.43034]
[1741927654465,8.25744474,1898.9,1898.6,1.16356]
[1741927654665,8.25744474,1898.9,1898.5,5.26719]
[1741927655291,8.25744474,1898.9,1898.4,11.34565]
[1741927655492,8.25855474,1898.5,1898.1,5.26815]
[1741927655660,8.25910474,1898.3,1897.9,5.26873]
[1741927655870,0.4353,1898.2,1898.0,0.526873]
[1741927656098,5.70346,1898.2,1897.8,6.07212]
[1741927656302,2.99122474,1898.1,1897.7,5.26936]
[1741927656503,8.25975474,1898.1,1897.7,5.26936]
[1741927657980,5.26882,1898.0,1897.6,10.96825]
[1741927658300,5.26882,1898.0,1897.6,10.20575]
[1741927658500,0.4353,1897.9,1897.6,10.20575]
[1741927658719,0.4353,1897.9,1897.6,6.817306]
[1741927658873,0.4353,1897.9,1897.6,6.8699984]
[1741927659080,0.4353,1897.9,1897.7,5.26951]
[1741927659297,3.42652474,1898.1,1897.8,5.26902]
[1741927659876,3.42652474,1898.1,1897.9,0.11120397]
[1741927661715,8.69505474,1898.1,1897.9,0.11120397]
[1741927661877,3.42652474,1898.1,1897.8,5.26925]
[1741927662216,3.42652474,1898.1,1898.0,0.11120397]
[1741927662509,3.42652474,1898.1,1897.7,6.03188]
[1741927662715,3.42652474,1898.1,1898.0,0.11120397]
[1741927662917,3.42652474,1898.1,1897.7,6.03188]
[1741927663116,3.42652474,1898.1,1898.0,0.11120397]
[1741927663273,3.42652474,1898.1,1897.7,6.03188]
[1741927663473,3.42652474,1898.1,1898.0,0.11120397]
[1741927663698,3.42652474,1898.1,1897.7,7.162049]
[1741927663901,3.42652474,1898.1,1898.0,0.11120397]
[1741927664098,3.42652474,1898.1,1897.7,7.162049]
[1741927664286,3.42652474,1898.1,1898.0,0.11120397]
[1741927664488,3.42652474,1898.1,1897.7,7.162019]
[1741927664781,3.42652474,1898.1,1897.8,0.7162019]
[1741927664983,3.42652474,1898.1,1897.9,0.11120397]
[1741927669430,2.99122474,1898.1,1897.9,0.11120397]
[1741927670000,0.4353,1898.0,1897.9,0.11120397]
[1741927670196,5.704,1898.0,1897.9,0.11120397]
[1741927670425,8.704,1898.0,1897.6,5.26975]
[1741927670631,2.99122474,1897.9,1897.3,6.06709]
[1741927670923,8.26020474,1897.9,1897.4,10.59304846]
[1741927671125,2.99122474,1897.9,1897.5,5.26991]
[1741927671303,2.99122474,1897.9,1897.6,0.7508]
[1741927671603,2.99122474,1897.9,1897.6,6.622641]
[1741927671797,8.70401,1898.0,1897.6,6.622641]
[1741927671998,3.0,1897.9,1897.6,1.40556447]
[1741927672195,3.0,1897.9,1897.7,5.26943]
[1741927672985,3.0,1898.0,1897.7,5.26943]
[1741927674019,3.0,1898.0,1897.7,10.53877]
[1741927674433,3.0,1898.0,1897.8,5.26921]
[1741927674588,3.0,1898.0,1897.8,6.323065]
[1741927674783,3.0,1898.0,1897.9,0.11325364]
[1741927675492,8.2687,1898.0,1897.9,0.11325364]
[1741927675893,8.2687,1898.0,1897.6,6.0205]
[1741927676394,8.2687,1898.0,1897.7,0.11325364]
[1741927676610,8.2687,1898.0,1897.6,6.0205]
[1741927676925,8.2687,1898.0,1897.8,0.11325364]
[1741927677088,8.2687,1898.0,1897.7,0.60205]
[1741927677289,8.2687,1898.0,1897.9,0.11325364]
[1741927677500,8.2687,1898.0,1897.6,6.0205]
[1741927677696,3.0,1898.0,1897.9,0.11325364]
[1741927678219,3.0,1898.0,1897.7,5.26948]
[1741927678424,3.0,1898.0,1897.9,0.11325364]
[1741927678594,3.0,1898.0,1897.7,5.26948]
[1741927678794,3.0,1898.0,1897.8,0.11325364]
[1741927679995,3.0,1898.0,1897.8,5.38249364]
[1741927680213,3.0,1898.0,1897.8,6.17919364]
[1741927680416,3.0,1898.0,1897.8,7.324061]
[1741927680821,3.4353,1898.2,1897.8,12.593061]
[1741927681025,3.4353,1898.2,1897.8,7.323821]
[1741927681926,8.7035,1898.2,1897.8,7.323821]
[1741927682325,0.39226942,1898.4,1897.9,0.7967]
[1741927682501,8.26762,1898.4,1898.0,5.26852]
[1741927682695,8.26762,1898.4,1898.0,5.38154311]
[1741927685527,5.2679,1898.3,1898.0,0.11302311]
[1741927685732,3.0,1898.1,1898.0,0.11302311]
[1741927688824,8.25915474,1898.3,1898.0,0.11302311]
[1741927689966,13.52726474,1898.3,1898.0,0.11302311]
[1741927690238,5.26817,1898.2,1898.0,0.11302311]
[1741927690832,5.26842,1898.1,1898.0,0.11302311]
[1741927691035,9.31330374,1898.1,1898.0,0.11302311]
[1741927691406,5.26881,1898.0,1897.7,0.827]
[1741927691735,10.53773,1898.0,1897.8,0.1088104]
[1741927692137,5.26881,1898.0,1897.8,0.1088104]
[1741927692528,8.25965474,1898.1,1897.8,0.1088104]
[1741927692722,8.25965474,1898.1,1897.8,0.72933644]
[1741927693035,5.2688,1898.0,1897.8,0.1088104]
[1741927693741,8.25965474,1898.1,1897.8,0.1088104]
[1741927693945,10.53774,1898.0,1897.8,0.1088104]
[1741927694257,5.26881,1898.0,1897.8,0.1088104]
[1741927694457,5.26898,1897.9,1897.8,0.1088104]
[1741927694641,5.70428,1897.9,1897.8,0.1088104]
[1741927694847,5.26926,1897.8,1897.5,0.805]
[1741927695048,5.26926,1897.8,1897.5,2.91033]
[1741927695961,8.26080474,1897.7,1897.4,10.04]
[1741927696253,8.26080474,1897.7,1897.3,6.07544]
[1741927696458,8.26080474,1897.7,1897.3,11.34596]
[1741927696664,5.26926,1897.8,1897.4,5.27036]
[1741927699555,10.53875,1897.8,1897.4,5.27036]
[1741927699730,5.26926,1897.8,1897.4,6.40494]
[1741927700459,5.26968,1897.7,1897.4,1.13458]
[1741927701159,10.53946,1897.7,1897.3,6.07544]
[1741927701650,10.53946,1897.7,1897.3,0.805]
[1741927701651,5.26983,1897.6,1897.3,0.805]
[1741927704670,5.26983,1897.6,1897.2,10.20886]
[1741927704821,5.26983,1897.6,1897.4,0.10940494]
[1741927705021,5.26983,1897.6,1897.2,10.20886]
[1741927705326,5.26983,1897.6,1897.3,0.10940494]
[1741927706220,5.27009,1897.5,1897.3,0.10940494]
[1741927706419,5.27009,1897.5,1897.1,11.00521]
[1741927706620,5.27009,1897.5,1897.2,0.10940494]
[1741927706842,5.27009,1897.5,1897.1,11.00521]
[1741927707044,5.27009,1897.5,1897.3,0.10940494]
[1741927707243,5.27009,1897.5,1897.2,1.100521]
[1741927707422,5.27009,1897.5,1897.4,0.10940494]
[1741927707623,5.27009,1897.5,1897.1,11.00521]
[1741927707823,5.27009,1897.5,1897.2,0.10940494]
[1741927708025,5.27009,1897.5,1897.1,16.27627]
[1741927708226,5.27009,1897.5,1897.2,0.10940494]
[1741927708456,5.27009,1897.5,1897.1,13.636837]
[1741927708653,5.27009,1897.5,1897.3,0.10940494]
[1741927708857,5.27009,1897.5,1897.1,13.636837]
[1741927709062,5.27009,1897.5,1897.4,0.10940494]
[1741927709359,5.70568,1897.4,1896.9,6.06951]
[1741927709559,3.42652474,1897.1,1896.5,10.04]
[1741927709732,3.42652474,1897.1,1896.2,10.8379]
[1741927709733,2.99122474,1896.6,1896.2,10.8379]
[1741927709937,2.99122474,1896.6,1896.2,16.11148]
[1741927710134,8.26394474,1896.6,1896.2,2.936433]
[1741927710366,5.27323,1896.4,1896.0,6.09723]
[1741927710864,5.70838,1896.5,1896.0,6.097]
[1741927711026,8.26439474,1896.4,1896.0,6.097]
[1741927711640,2.99122474,1896.4,1896.1,5.32645618]
[1741927711823,0.4353,1896.5,1896.2,5.27367]
[1741927712053,7.93022474,1896.6,1896.2,5.27367]
[1741927712054,8.36552474,1896.6,1896.2,5.27367]
[1741927712572,8.36552474,1896.6,1896.3,5.27341]
[1741927712749,13.63762474,1896.8,1896.4,5.27314]
[1741927712942,13.63762474,1896.8,1896.3,11.32787]
[1741927714261,5.27232,1896.7,1896.3,6.05446]
[1741927714682,13.63762474,1896.8,1896.3,11.32777]
[1741927714835,20.61355842,1896.8,1896.3,6.05446]
[1741927715256,20.61355842,1896.8,1896.3,11.32777]
[1741927715455,15.34129842,1896.8,1896.3,11.32777]
[1741927715664,15.34129842,1896.8,1896.4,5.27306]
[1741927715965,10.06919842,1896.8,1896.4,5.27306]
[1741927716267,5.13019842,1896.8,1896.4,5.27306]
[1741927716563,10.40223842,1896.8,1896.4,5.27306]
[1741927717458,10.40223842,1896.8,1896.3,6.05446]
[1741927717459,2.99122474,1896.8,1896.5,5.27277]
[1741927717869,2.99122474,1896.8,1896.6,5.27248]
[1741927718036,2.99122474,1896.8,1896.5,5.27277]
[1741927718235,8.26331474,1896.8,1896.3,11.32766]
[1741927718843,2.99122474,1896.8,1896.4,5.27299]
[1741927719165,9.10619202,1896.9,1896.5,5.27275]
[1741927719364,10.3159337,1896.9,1896.5,5.27275]
[1741927719552,4.64504168,1896.9,1896.6,5.27257]
[1741927719932,0.4353,1897.1,1896.7,0.08702934]
[1741927720133,5.7071,1896.9,1896.7,0.08702934]
[1741927720364,5.7071,1896.9,1896.5,5.27281]
[1741927720541,5.70671,1897.1,1896.8,0.08702934]
[1741927720732,0.570671,1897.0,1896.6,5.27254]
[1741927720928,5.27092,1897.2,1896.9,0.08702934]
[1741927721130,5.27092,1897.2,1896.7,5.27215]
[1741927721131,5.27135,1897.1,1896.7,5.27215]
[1741927721464,8.26214474,1897.2,1896.7,10.54435]
[1741927721667,8.26214474,1897.2,1896.8,0.08702934]
[1741927721845,8.26214474,1897.2,1896.8,5.35902934]
[1741927722040,2.99122474,1897.2,1896.8,5.35884934]
[1741927722241,2.99122474,1897.2,1896.8,10.63073934]
[1741927722440,2.99122474,1897.2,1896.8,5.35884934]
[1741927722646,5.70598,1897.3,1896.9,5.27161]
[1741927722834,5.27132,1897.1,1896.8,0.08702934]
[1741927723043,5.27132,1897.1,1896.7,5.27229]
[1741927723245,5.27132,1897.1,1896.8,0.08791416]
[1741927724370,10.54268,1897.1,1896.8,0.08791416]
[1741927724546,5.27132,1897.1,1896.8,0.08791416]
[1741927724731,5.27132,1897.1,1896.7,5.27228]
[1741927724936,5.27132,1897.1,1896.9,0.08791416]
[1741927725265,5.27132,1897.1,1897.0,0.08791416]
[1741927725461,5.27132,1897.1,1896.7,5.27228]
[1741927725638,5.27132,1897.1,1897.0,0.08791416]
[1741927725838,5.27132,1897.1,1896.7,5.27228]
[1741927726062,5.27132,1897.1,1896.8,0.08791416]
[1741927726438,8.26218474,1897.2,1896.8,5.35982416]
[1741927728568,2.99122474,1897.2,1896.8,5.35973416]
[1741927728757,2.99122474,1897.2,1896.9,5.27171]
[1741927729066,2.99122474,1897.2,1896.8,5.80779342]
[1741927729269,5.70598,1897.3,1897.0,0.08791416]
[1741927729438,5.70598,1897.3,1896.9,6.02416]
[1741927729762,3.4353,1897.3,1897.0,0.08791416]
[1741927729975,3.4353,1897.3,1897.0,5.35938416]
[1741927730476,3.4353,1897.3,1897.0,0.08791416]
[1741927730683,3.0,1897.1,1897.0,0.08791416]
[1741927730888,8.2712,1897.1,1896.7,6.05584]
[1741927731065,8.2712,1897.1,1897.0,0.08791416]
[1741927731263,8.2712,1897.1,1896.7,6.05584]
[1741927731776,8.2712,1897.1,1896.8,0.08791416]
[1741927732169,8.69814474,1897.0,1896.8,0.08791416]
[1741927732352,5.27175,1896.9,1896.8,0.08791416]
[1741927732554,3.0,1896.9,1896.4,10.7985]
[1741927732756,8.26369474,1896.7,1896.2,6.03194]
[1741927732960,5.27262,1896.6,1896.2,6.03194]
[1741927733160,5.27262,1896.6,1896.2,6.635134]
[1741927733565,8.26369474,1896.7,1896.3,5.27326]
[1741927734082,5.70734,1896.8,1896.4,5.27311]
[1741927735080,5.70734,1896.8,1896.5,0.0887626]
[1741927735281,5.27204,1896.8,1896.5,0.9029626]
[1741927736575,11.69827474,1896.9,1896.5,6.1756526]
[1741927736576,6.42652474,1896.9,1896.5,6.1756526]
[1741927736779,3.4353,1896.9,1896.5,6.1756526]
[1741927737077,8.70707,1896.9,1896.5,6.1756526]
[1741927738188,5.27241,1896.7,1896.5,0.0887626]
[1741927738559,5.27241,1896.7,1896.3,6.08735]
[1741927738759,8.27241,1896.7,1896.6,0.08906578]
[1741927738985,5.27269,1896.6,1896.1,6.10084]
[1741927739183,5.27289,1896.5,1896.1,8.736427]
[1741927739883,10.98082,1896.6,1896.1,8.736247]
[1741927740187,5.27291,1896.5,1896.1,6.10066]
[1741927740360,5.27317,1896.4,1896.1,0.8269]
[1741927740563,5.27325,1896.4,1896.1,0.8269]
[1741927740870,5.27325,1896.4,1896.0,5.27398]
[1741927741284,5.27325,1896.4,1896.0,10.54812]
[1741927741490,5.27325,1896.4,1896.0,11.682582]
[1741927741660,5.27291,1896.5,1896.0,11.682582]
[1741927742565,3.0,1896.5,1896.1,5.27398]
[1741927742774,3.0,1896.5,1896.2,5.27359]
[1741927743486,3.0,1896.5,1896.2,5.27349]
[1741927743791,3.0,1896.5,1896.2,6.05849]
[1741927743981,8.27293,1896.5,1896.2,0.785]
[1741927744694,3.0,1896.5,1896.2,0.785]
[1741927744994,5.67645946,1896.7,1896.3,5.27315]
[1741927745190,5.67645946,1896.7,1896.2,6.05866]
[1741927745693,5.27259,1896.6,1896.2,6.05866]
[1741927745889,0.4353,1896.5,1896.1,5.27383]
[1741927746092,5.7083,1896.5,1896.1,5.27383]
[1741927747090,5.7083,1896.5,1896.0,6.07719]
[1741927747265,5.27327,1896.4,1896.0,6.07719]
[1741927748089,5.7083,1896.5,1896.0,7.26493938]
[1741927748272,5.273,1896.5,1896.1,5.27386]
[1741927748468,10.5461,1896.5,1896.1,5.27386]
[1741927748684,5.273,1896.5,1896.1,5.27386]
[1741927748880,8.27259,1896.6,1896.2,5.2736]
[1741927749081,8.27259,1896.6,1896.3,0.7901]
[1741927749287,5.27259,1896.6,1896.3,0.7901]
[1741927749567,5.70762,1896.7,1896.3,6.06351]
[1741927749766,5.27176,1896.9,1896.4,5.27309]
[1741927749967,5.27176,1896.9,1896.6,0.7661]
[1741927750169,10.54426,1896.8,1896.4,0.85601478]
[1741927750367,13.54426,1896.8,1896.7,0.08975708]
[1741927750597,13.54426,1896.8,1896.4,1.90636748]
[1741927750797,13.54426,1896.8,1896.7,0.08975708]
[1741927750999,8.27205,1896.8,1896.4,7.17941748]
[1741927751293,8.27204,1896.8,1896.4,7.17941748]
[1741927751493,3.0,1896.8,1896.5,6.08054883]
[1741927751701,3.0,1896.8,1896.6,5.27257]
[1741927752000,15.92599,1897.3,1896.8,5.27192]
[1741927752198,3.0,1897.2,1896.7,6.03823]
[1741927752502,8.27108,1897.2,1896.8,5.27202]
[1741927752667,8.27108,1897.2,1896.8,5.36137686]
[1741927753069,13.54227,1897.2,1896.8,0.08935686]
[1741927753270,5.27122,1897.1,1896.8,0.08935686]
[1741927753510,8.27108,1897.2,1896.8,6.08722365]
[1741927754202,8.27105,1897.2,1896.8,6.08722365]
[1741927754611,10.93542907,1897.4,1896.9,6.02263]
[1741927754807,5.27068,1897.3,1896.9,6.02263]
[1741927755170,5.27068,1897.3,1897.0,0.08935686]
[1741927755370,5.27068,1897.3,1897.0,0.70055555]
[1741927758112,5.27068,1897.3,1897.0,0.08935686]
[1741927759206,5.27107,1897.2,1897.0,0.08935686]
[1741927759379,5.2712,1897.1,1897.0,0.08935686]
[1741927759875,5.2712,1897.1,1897.0,0.08824128]
[1741927760290,5.2712,1897.1,1896.7,0.7787]
[1741927760510,5.2712,1897.1,1897.0,0.08824128]
[1741927760683,6.36895,1897.1,1896.7,0.7787]
[1741927760883,5.2712,1897.1,1897.0,0.08831402]
[1741927761185,5.2712,1897.1,1896.7,0.7787]
[1741927761392,5.2712,1897.1,1897.0,0.08831402]
[1741927761593,5.2712,1897.1,1896.7,0.7787]
[1741927762099,5.2712,1897.1,1896.8,0.08831402]
[1741927762501,5.70631,1897.2,1896.8,0.08831402]
[1741927762714,5.70631,1897.2,1896.8,5.36033402]
[1741927763028,10.97734,1897.2,1896.8,5.36033402]
[1741927763717,5.70631,1897.2,1896.8,5.36033402]
[1741927764917,5.27101,1897.2,1896.8,5.36033402]
[1741927766011,5.27101,1897.2,1896.8,6.50146742]
[1741927766217,10.54142,1897.3,1896.8,11.77334742]
[1741927766402,10.54144,1897.3,1896.8,11.77334742]
[1741927766609,8.27065,1897.3,1897.0,0.7869]
[1741927766907,8.27065,1897.3,1897.1,0.08824128]
[1741927767790,5.66462907,1897.4,1897.1,0.08824128]
[1741927767987,10.93521907,1897.4,1897.1,0.08824128]
[1741927769527,5.27067,1897.3,1897.1,0.08824128]
[1741927771526,5.66462907,1897.4,1897.1,0.08824128]
[1741927771915,10.93517907,1897.4,1897.1,0.08824128]
[1741927772119,5.27064,1897.3,1897.1,0.08824128]
[1741927775830,10.93521907,1897.4,1897.1,0.08824128]
[1741927776137,10.93514907,1897.4,1897.1,0.08824128]
[1741927776626,10.93521907,1897.4,1897.1,0.08824128]
[1741927776807,5.66462907,1897.4,1897.1,0.08824128]
[1741927777435,0.39425907,1897.4,1897.1,0.08824128]
[1741927777594,10.54044,1897.5,1897.1,5.35940128]
[1741927777799,5.27038,1897.4,1897.1,0.08824128]
[1741927778211,0.38809159,1897.5,1897.1,5.35938128]
[1741927778406,13.96638474,1897.6,1897.1,5.35938128]
[1741927778607,13.96638474,1897.6,1897.2,0.8158]
[1741927778813,8.69634474,1897.6,1897.2,0.8158]
[1741927779013,13.96641474,1897.6,1897.3,0.08813217]
[1741927779506,5.27011,1897.5,1897.3,0.08813217]
[1741927780443,10.54042,1897.5,1897.3,0.08813217]
[1741927780610,5.27036,1897.4,1897.3,0.08813217]
[1741927781517,5.27069,1897.3,1897.0,0.7873]
[1741927784107,5.27036,1897.4,1897.0,6.05874]
[1741927784309,5.27036,1897.4,1897.0,7.19177]
[1741927784608,10.54097,1897.4,1897.0,0.7873]
[1741927785110,5.27066,1897.3,1897.0,0.7873]
[1741927786140,5.27036,1897.4,1897.0,6.05874]
[1741927788040,5.27036,1897.4,1897.0,11.33009]
[1741927788231,5.27036,1897.4,1897.1,5.27118]
[1741927789422,5.27038,1897.4,1897.0,6.05865]
[1741927789608,10.79025332,1897.6,1897.2,5.2709]
[1741927789813,5.27012,1897.5,1897.2,0.7559]
[1741927794951,5.27012,1897.5,1897.3,0.08791398]
[1741927798754,5.27036,1897.4,1897.2,0.7559]
[1741927798954,5.27036,1897.4,1897.0,11.30655]
[1741927799156,5.27036,1897.4,1897.0,12.437045]
[1741927800324,5.27012,1897.5,1897.1,5.27118]
[1741927802462,5.27037,1897.4,1897.0,7.165745]
[1741927803356,5.27037,1897.4,1897.0,12.437015]
[1741927804457,5.27012,1897.5,1897.1,5.27118]
[1741927804657,5.27012,1897.5,1897.1,11.7859205]
[1741927805561,5.27012,1897.5,1897.1,6.5147405]
[1741927805861,5.27012,1897.5,1897.1,5.27105]
[1741927808631,9.09347185,1897.6,1897.2,5.2709]
[1741927808835,6.10224711,1897.6,1897.2,5.2709]
[1741927809048,11.37229711,1897.6,1897.2,5.2709]
[1741927809268,10.93699711,1897.6,1897.3,0.779]
[1741927809766,10.93699711,1897.6,1897.4,0.08787763]
[1741927809969,10.93698711,1897.6,1897.4,0.08787763]
[1741927810173,5.27009,1897.5,1897.4,0.08787763]
[1741927811167,5.27064,1897.3,1896.9,0.779]
[1741927811466,8.69790474,1897.1,1896.7,6.05131]
[1741927811649,8.69786474,1897.1,1896.7,6.05131]
[1741927811969,13.96919474,1897.1,1896.7,6.05131]
[1741927812159,5.70663,1897.1,1896.7,7.183694]
[1741927816475,5.27151,1897.0,1896.7,0.779]
[1741927818686,6.10258066,1897.1,1896.7,0.779]
[1741927818855,8.69740474,1897.3,1896.8,5.27177]
[1741927819062,5.27103,1897.2,1896.8,10.54366]
[1741927819357,8.26190474,1897.3,1896.9,0.7887]
[1741927819562,5.70635,1897.2,1896.9,0.7887]
[1741927819762,5.27105,1897.2,1896.9,0.7887]
[1741927820477,9.81753431,1897.3,1896.9,0.7887]
[1741927820780,15.08834431,1897.3,1896.9,0.7887]
[1741927820976,9.81753431,1897.3,1896.9,0.7887]
[1741927821287,9.81753431,1897.3,1896.9,6.0604]
[1741927821481,8.27038,1897.4,1897.1,0.7975]
[1741927821886,8.2705,1897.4,1897.1,0.7975]
[1741927822763,5.66695711,1897.6,1897.2,5.27088]
[1741927824473,10.93703711,1897.6,1897.1,6.06844]
[1741927824679,5.66695711,1897.6,1897.1,6.06844]
[1741927824981,5.27012,1897.5,1897.2,0.08494271]
[1741927825158,5.66695711,1897.6,1897.1,6.06844]
[1741927825359,5.27027,1897.5,1897.3,0.08494271]
[1741927825586,5.27027,1897.5,1897.1,0.7975]
[1741927825587,5.27027,1897.5,1897.1,6.06869]
[1741927825782,5.27027,1897.5,1897.4,0.08494271]
[1741927825984,10.54051,1897.5,1897.1,0.7975]
[1741927826291,10.54051,1897.5,1897.4,0.08494271]
[1741927826587,6.48058553,1897.5,1897.4,0.08494271]
[1741927826755,6.48058553,1897.5,1897.1,6.06866]
[1741927826960,5.27024,1897.5,1897.4,0.08494271]
[1741927827161,5.27024,1897.5,1897.1,6.06866]
[1741927827360,5.27024,1897.5,1897.4,0.08494271]
[1741927827561,5.27024,1897.5,1897.1,6.06866]
[1741927827789,5.27024,1897.5,1897.4,0.08494271]
[1741927827990,5.27024,1897.5,1897.1,6.06866]
[1741927828191,5.27024,1897.5,1897.2,0.606866]
[1741927828358,5.27024,1897.5,1897.2,0.08494271]
[1741927828560,5.27024,1897.5,1897.1,6.06866]
[1741927828795,5.27024,1897.5,1897.3,0.08494271]
[1741927828994,5.27024,1897.5,1897.1,6.06866]
[1741927829182,5.27024,1897.5,1897.4,0.08494271]
[1741927829387,11.10729671,1897.5,1897.1,0.7975]
[1741927829566,10.54056,1897.5,1897.4,0.08494271]
[1741927829766,10.54056,1897.5,1897.1,0.7975]
[1741927829987,10.54056,1897.5,1897.4,0.08494271]
[1741927830187,5.27042,1897.4,1897.1,0.7975]
[1741927831793,5.27024,1897.5,1897.1,6.06864]
[1741927834280,5.27024,1897.5,1897.1,7.202628]
[1741927834481,5.66693711,1897.6,1897.1,7.202468]
[1741927834680,5.66693711,1897.6,1897.2,5.27089]
[1741927834877,10.93686711,1897.6,1897.2,5.27089]
[1741927835106,10.93685711,1897.6,1897.2,5.27089]
[1741927835277,10.93689711,1897.6,1897.2,5.27089]
[1741927835473,5.66693711,1897.6,1897.3,0.7956]
[1741927835692,8.26953,1897.7,1897.3,6.06611]
[1741927835892,3.0,1897.7,1897.4,5.27024]
[1741927836105,11.29936,1897.8,1897.5,0.8292]
[1741927836430,1.48191555,1898.0,1897.5,0.88190156]
[1741927836575,6.75063555,1898.0,1897.7,0.8292]
[1741927837419,5.26872,1898.0,1897.8,0.08455535]
[1741927839211,22.70342,1898.1,1897.8,0.08455535]
[1741927839789,23.09058988,1898.1,1897.8,0.08455535]
[1741927840192,5.26817,1898.2,1897.8,0.08455535]
[1741927840392,5.26817,1898.2,1897.9,0.7848]
[1741927840976,5.26817,1898.2,1898.0,0.08409555]
[1741927841785,11.25909474,1898.3,1898.0,0.08409555]
[1741927843405,0.39101384,1898.4,1898.0,5.35254555]
[1741927843714,5.26759,1898.4,1898.1,0.53525456]
[1741927843928,5.26759,1898.4,1898.0,5.35254555]
[1741927844134,5.26759,1898.4,1898.0,5.26845]
[1741927844325,5.26759,1898.4,1898.1,0.08409555]
[1741927849507,8.66224675,1898.5,1898.1,0.08409555]
[1741927849709,13.92972675,1898.5,1898.1,5.35250555]
[1741927850228,13.92972675,1898.5,1898.1,6.41460111]
[1741927850448,5.26759,1898.4,1898.1,1.14619111]
[1741927850629,10.53538,1898.4,1898.1,1.14619111]
[1741927851339,5.26788,1898.3,1898.1,1.14619111]
[1741927851634,5.26814,1898.2,1898.1,0.08409555]
[1741927851843,5.26814,1898.2,1897.9,0.7848]
[1741927852039,5.26814,1898.2,1898.1,0.08312766]
[1741927852235,5.26814,1898.2,1897.9,0.7848]
[1741927852440,5.26814,1898.2,1898.1,0.08312766]
[1741927852645,5.26844,1898.1,1897.7,6.07553]
[1741927852810,5.26814,1898.2,1898.1,0.08268013]
[1741927853112,5.26814,1898.2,1897.8,5.26921]
[1741927853317,5.26814,1898.2,1898.1,0.08268013]
[1741927853518,5.26814,1898.2,1897.7,6.07538]
[1741927853830,5.26814,1898.2,1897.8,0.607538]
[1741927854041,5.26763,1898.4,1898.0,0.7643]
[1741927854337,8.25885474,1898.4,1898.0,6.03299]
[1741927854541,8.25885474,1898.4,1898.1,0.08283735]
[1741927855042,11.04349201,1898.5,1898.1,5.35123735]
[1741927855347,10.60819201,1898.5,1898.1,5.35123735]
[1741927856143,10.60819201,1898.5,1898.1,0.08283735]
[1741927856341,5.26766,1898.4,1898.1,0.08283735]
[1741927857249,10.60819201,1898.5,1898.1,0.08283735]
[1741927858849,15.87573201,1898.5,1898.1,0.08283735]
[1741927859053,5.26772,1898.4,1898.1,0.08283735]
[1741927859752,8.25894474,1898.4,1898.1,0.08283735]
[1741927859918,10.58095842,1898.4,1898.1,0.08283735]
[1741927860651,2.99122474,1898.2,1898.1,0.08283735]
[1741927860856,8.25949474,1898.2,1897.8,6.04942]
[1741927861032,5.26851,1898.1,1897.8,0.7802]
[1741927862047,8.25940474,1898.2,1897.8,6.04941]
[1741927862247,5.26818,1898.2,1897.9,0.604941]
[1741927864228,5.26818,1898.2,1897.8,6.04926]
[1741927866656,5.26809,1898.3,1897.9,5.26897]
[1741927868422,5.26809,1898.3,1897.8,6.04926]
[1741927868642,5.26817,1898.2,1897.8,6.04926]
[1741927869348,5.26817,1898.2,1897.8,11.31831]
[1741927869554,5.26809,1898.3,1897.9,1.131831]
[1741927869851,5.26809,1898.3,1898.0,0.08264385]
[1741927870058,10.53623,1898.3,1898.0,0.08264385]
[1741927870224,5.26816,1898.2,1898.0,0.08264385]
[1741927870426,5.26843,1898.1,1897.8,0.7802]
[1741927870628,5.26843,1898.1,1897.8,1.385172]
[1741927872763,5.26881,1898.0,1897.7,0.7561]
[1741927875063,5.26843,1898.1,1897.7,6.02554]
[1741927875356,10.5362,1898.3,1897.8,6.09563]
[1741927875561,5.26815,1898.2,1897.8,6.09563]
[1741927876259,1.7959411,1898.1,1897.8,6.09563]
[1741927876459,1.7959411,1898.2,1897.9,5.26897]
[1741927876665,7.0641911,1898.2,1897.8,6.705193]
[1741927877159,1.7959411,1898.1,1897.8,6.705193]
[1741927877360,7.0641911,1898.2,1897.8,6.705193]
[1741927877566,1.7959411,1898.1,1897.8,1.436163]
[1741927878065,7.0643711,1898.1,1897.8,1.436163]
[1741927879667,1.7959411,1898.1,1897.8,1.436163]
[1741927882666,7.0643911,1898.1,1897.8,1.436163]
[1741927884870,7.0643911,1898.1,1897.9,0.08305505]
[1741927885437,12.3330911,1898.1,1897.9,0.08305505]
[1741927885641,5.2687,1898.0,1897.9,0.08305505]
[1741927888167,6.93730911,1898.0,1897.9,0.08305505]
[1741927888344,8.73325021,1898.0,1897.9,0.08305505]
[1741927888546,5.27009,1897.5,1897.2,0.8267]
[1741927888742,1.7959411,1897.3,1897.1,0.8267]
[1741927889042,1.7959411,1897.2,1897.1,1.436515]
[1741927889246,7.0670011,1897.2,1896.9,0.8267]
[1741927889447,1.7959411,1897.0,1896.9,0.8267]
[1741927889643,7.0674211,1897.0,1896.7,0.8267]
[1741927889845,1.7959411,1897.2,1896.5,0.8267]